fUST/lending_fUST_20240916
["ID","MTS","AMOUNT","RATE_DAILY","PERIOD"]
[338251996,1726441840975,-2272.29,0.00021917,2]
[338251998,1726441840985,-915.94,0.00021917,2]
[338252000,1726441840996,-500.0,0.00021917,2]
[338252002,1726441841006,-500.0,0.00021917,2]
[338252004,1726441841015,-500.0,0.00021917,2]
[338252006,1726441841025,-513.61,0.00021917,2]
[338252008,1726441841034,-500.0,0.00021917,2]
[338252010,1726441841044,-500.0,0.00021917,2]
[338252012,1726441841053,-565.44,0.00021917,2]
[338252014,1726441841065,-500.0,0.00021917,2]
[338252016,1726441841075,-881.48,0.00021917,2]
[338252018,1726441841085,-500.0,0.00021917,2]
[338252020,1726441841094,-500.0,0.00021917,2]
[338252022,1726441841104,-246.76942747,0.00021917,2]
[338252024,1726441841113,-2835.55,0.00021917,2]
[338252026,1726441841122,-1643.24,0.00021917,2]
[338252028,1726441841132,-500.0,0.00021917,2]
[338252030,1726441841142,-500.0,0.00021917,2]
[338252032,1726441841151,-500.0,0.00021917,2]
[338252034,1726441841161,-500.0,0.00021917,2]
[338252035,1726441841170,-500.0,0.00021917,2]
[338252037,1726441841179,-1555.67,0.00021917,2]
[338252039,1726441841189,-500.0,0.00021917,2]
[338252041,1726441841199,-963.07,0.00021917,2]
[338252043,1726441841210,-4928.03,0.00021917,2]
[338252045,1726441841220,-817.76,0.00021917,2]
[338252047,1726441841230,-500.0,0.00021917,2]
[338252049,1726441841239,-500.0,0.00021917,2]
[338252051,1726441841249,-500.0,0.00021917,2]
[338252053,1726441841258,-1983.76,0.00021917,2]
[338252055,1726441841268,-886.25,0.00021917,2]
[338252057,1726441841278,-500.0,0.00021917,2]
[338252059,1726441841288,-511.33396354,0.00021917,2]
[338252061,1726441841298,-981.79,0.00021917,2]
[338252063,1726441841308,-694.65,0.00021917,2]
[338252065,1726441841318,-541.54,0.00021917,2]
[338252066,1726441841327,-500.0,0.00021917,2]
[338252068,1726441841337,-1767.14,0.00021917,2]
[338252070,1726441841347,-500.0,0.00021917,2]
[338252072,1726441841358,-550.96,0.00021917,2]
[338252074,1726441841367,-339.71939778,0.00021917,2]
[338252076,1726441841377,-500.0,0.00021917,2]
[338252078,1726441841387,-500.0,0.00021917,2]
[338252080,1726441841397,-500.0,0.00021917,2]
[338252082,1726441841408,-1528.47,0.00021917,2]
[338252084,1726441841418,-1632.1,0.00021917,2]
[338252086,1726441841429,-563.16,0.00021917,2]
[338252088,1726441841439,-500.0,0.00021917,2]
[338252090,1726441841449,-2229.83,0.00021917,2]
[338252092,1726441841459,-917.63,0.00021917,2]
[338252094,1726441841468,-500.0,0.00021917,2]
[338252096,1726441841478,-500.0,0.00021917,2]
[338252098,1726441841487,-500.0,0.00021917,2]
[338252100,1726441841497,-500.0,0.00021917,2]
[338252102,1726441841508,-500.0,0.00021917,2]
[338252104,1726441841517,-523.1304693,0.00021917,2]
[338252106,1726441841527,-408.25363019,0.00021917,2]
[338252108,1726441841538,-500.0,0.00021917,2]
[338252110,1726441841548,-500.0,0.00021917,2]
[338252112,1726441841557,-500.0,0.00021917,2]
[338252114,1726441841567,-2997.64,0.00021917,2]
[338252116,1726441841576,-500.0,0.00021917,2]
[338252118,1726441841587,-399.71600553,0.00021917,2]
[338252120,1726441841596,-3523.3,0.00021917,2]
[338252122,1726441841608,-500.0,0.00021917,2]
[338252123,1726441841618,-620.18791227,0.00021917,2]
[338252125,1726441841628,-500.0,0.00021917,2]
[338252127,1726441841638,-500.0,0.00021917,2]
[338252129,1726441841649,-695.04,0.00021917,2]
[338252131,1726441841658,-500.0,0.00021917,2]
[338252133,1726441841667,-500.0,0.00021917,2]
[338252135,1726441841677,-1646.71,0.00021917,2]
[338252137,1726441841687,-737.82,0.00021917,2]
[338252139,1726441841696,-500.0,0.00021917,2]
[338252141,1726441841706,-1741.76,0.00021917,2]
[338252143,1726441841716,-500.0,0.00021917,2]
[338252145,1726441841726,-5161.72,0.00021917,2]
[338252147,1726441841736,-500.0,0.00021917,2]
[338252149,1726441841746,-500.0,0.00021917,2]
[338252151,1726441841756,-500.0,0.00021917,2]
[338252153,1726441841766,-500.0,0.00021917,2]
[338252155,1726441841776,-500.0,0.00021917,2]
[338252156,1726441841786,-1051.05,0.00021917,2]
[338252158,1726441841795,-500.0,0.00021917,2]
[338252160,1726441841806,-500.0,0.00021917,2]
[338252162,1726441841815,-500.0,0.00021917,2]
[338252164,1726441841825,-534.47,0.00021917,2]
[338252166,1726441841835,-500.0,0.00021917,2]
[338252168,1726441841845,-1227.58,0.00021917,2]
[338252170,1726441841854,-500.0,0.00021917,2]
[338252172,1726441841864,-500.0,0.00021917,2]
[338252174,1726441841873,-500.0,0.00021917,2]
[338252176,1726441841883,-2495.73027624,0.00021917,2]
[338252180,1726441841908,-990.97758649,0.00021917,2]
[338252204,1726441842156,-597.33213727,0.00021917,2]
[338252206,1726441842166,-500.0,0.00021917,2]
[338252208,1726441842175,-500.0,0.00021917,2]
[338252210,1726441842185,-624.8192485,0.00021917,2]
[338252212,1726441842195,-983.87,0.00021917,2]
[338252214,1726441842205,-500.0,0.00021917,2]
[338252216,1726441842214,-689.44,0.00021917,2]
[338252218,1726441842223,-500.0,0.00021917,2]
[338252221,1726441842241,-500.0,0.00021917,2]
[338252223,1726441842257,-1038.24,0.00021917,2]
[338252226,1726441842272,-500.0,0.00021917,2]
[338252228,1726441842284,-1040.41,0.00021917,2]
[338252230,1726441842297,-500.0,0.00021917,2]
[338252231,1726441842311,-500.0,0.00021917,2]
[338252233,1726441842324,-956.82,0.00021917,2]
[338252235,1726441842339,-1359.44,0.00021917,2]
[338252237,1726441842353,-511.1,0.00021917,2]
[338252238,1726441842368,-333.80792361,0.00021917,2]
[338252329,1726441843509,-204.10207639,0.00021917,2]
[338252331,1726441843521,-500.0,0.00021917,2]
[338252333,1726441843534,-553.27137249,0.00021917,2]
[338252336,1726441843550,-1241.30862751,0.00021917,2]
[338252338,1726441843562,-500.0,0.00021917,2]
[338252340,1726441843573,-500.0,0.00021917,2]
[338252342,1726441843584,-310.28721942,0.00021917,2]
[338252344,1726441843599,-189.71278058,0.00021917,2]
[338252347,1726441843612,-407.89222035,0.00021917,2]
[338252349,1726441843626,-973.37777965,0.00021917,2]
[338252351,1726441843638,-500.0,0.00021917,2]
[338252353,1726441843650,-500.0,0.00021917,2]
[338252356,1726441843662,-587.17,0.00021917,2]
[338252358,1726441843674,-919.8,0.00021917,2]
[338252360,1726441843683,-872.16,0.00021917,2]
[338252362,1726441843693,-500.0,0.00021917,2]
[338252363,1726441843702,-500.0,0.00021917,2]
[338252365,1726441843712,-4556.45,0.00021917,2]
[338252367,1726441843723,-500.0,0.00021917,2]
[338252369,1726441843734,-521.98,0.00021917,2]
[338252371,1726441843744,-1345.53,0.00021917,2]
[338252373,1726441843754,-811.56,0.00021917,2]
[338252375,1726441843765,-151.0,0.00021917,2]
[338252377,1726441843774,-681.76,0.00021917,2]
[338252379,1726441843785,-151.0,0.00021917,2]
[338252381,1726441843795,-151.0,0.00021917,2]
[338252383,1726441843804,-1105.22,0.00021917,2]
[338252386,1726441843815,-500.0,0.00021917,2]
[338252388,1726441843824,-500.0,0.00021917,2]
[338252389,1726441843835,-500.0,0.00021917,2]
[338252391,1726441843844,-500.0,0.00021917,2]
[338252393,1726441843854,-500.0,0.00021917,2]
[338252395,1726441843864,-500.0,0.00021917,2]
[338252397,1726441843874,-771.2,0.00021917,2]
[338252399,1726441843884,-2340.43,0.00021917,2]
[338252401,1726441843893,-2509.71,0.00021917,2]
[338252432,1726441844212,-795.4,0.00021917,2]
[338252435,1726441844231,-500.0,0.00021917,2]
[338252438,1726441844252,-691.27,0.00021917,2]
[338252440,1726441844262,-1299.93,0.00021917,2]
[338252442,1726441844272,-500.0,0.00021917,2]
[338252444,1726441844282,-619.96,0.00021917,2]
[338252446,1726441844291,-500.0,0.00021917,2]
[338252448,1726441844300,-500.0,0.00021917,2]
[338252450,1726441844312,-5828.37,0.00021917,2]
[338252452,1726441844321,-1483.43,0.00021917,2]
[338252454,1726441844331,-1837.99,0.00021917,2]
[338252456,1726441844341,-500.0,0.00021917,2]
[338252458,1726441844351,-718.96,0.00021917,2]
[338252460,1726441844361,-500.0,0.00021917,2]
[338252462,1726441844370,-500.0,0.00021917,2]
[338252464,1726441844379,-1215.38,0.00021917,2]
[338252466,1726441844389,-500.0,0.00021917,2]
[338252467,1726441844398,-540.78,0.00021917,2]
[338252469,1726441844408,-500.0,0.00021917,2]
[338252470,1726441844418,-500.0,0.00021917,2]
[338252472,1726441844428,-999.39,0.00021917,2]
[338252474,1726441844439,-3130.09,0.00021917,2]
[338252476,1726441844449,-1564.26,0.00021917,2]
[338252478,1726441844458,-688.23,0.00021917,2]
[338252480,1726441844468,-500.0,0.00021917,2]
[338252482,1726441844479,-119562.94,0.00021917,2]
[338252484,1726441844488,-500.0,0.00021917,2]
[338252486,1726441844498,-500.0,0.00021917,2]
[338252488,1726441844508,-289.5730537,0.00021917,2]
[338252490,1726441844518,-500.46989776,0.00021917,2]
[338252492,1726441844527,-500.0,0.00021917,2]
[338252493,1726441844537,-768.48,0.00021917,2]
[338252495,1726441844548,-1625.54,0.00021917,2]
[338252497,1726441844558,-2138.07,0.00021917,2]
[338252499,1726441844568,-500.0,0.00021917,2]
[338252501,1726441844577,-52564.29,0.00021917,2]
[338252503,1726441844587,-715.77,0.00021917,2]
[338252505,1726441844597,-500.0,0.00021917,2]
[338252507,1726441844607,-6179.18,0.00021917,2]
[338252509,1726441844617,-1834.99,0.00021917,2]
[338252511,1726441844627,-500.0,0.00021917,2]
[338252513,1726441844637,-1963.7,0.00021917,2]
[338252515,1726441844649,-500.0,0.00021917,2]
[338252517,1726441844659,-500.0,0.00021917,2]
[338252519,1726441844670,-500.0,0.00021917,2]
[338252521,1726441844680,-2652.79,0.00021917,2]
[338252523,1726441844690,-2800.46,0.00021917,2]
[338252525,1726441844699,-500.0,0.00021917,2]
[338252527,1726441844710,-4106.77,0.00021917,2]
[338252529,1726441844720,-1333.16,0.00021917,2]
[338252530,1726441844729,-500.0,0.00021917,2]
[338252532,1726441844738,-500.0,0.00021917,2]
[338252534,1726441844750,-592.96,0.00021917,2]
[338252536,1726441844759,-6738.34,0.00021917,2]
[338252538,1726441844769,-4279.43,0.00021917,2]
[338252540,1726441844779,-500.0,0.00021917,2]
[338252542,1726441844789,-290.94660941,0.00021917,2]
[338252544,1726441844798,-599.66,0.00021917,2]
[338252546,1726441844808,-916.16,0.00021917,2]
[338252548,1726441844818,-500.0,0.00021917,2]
[338252549,1726441844829,-594.34,0.00021917,2]
[338252551,1726441844839,-992.22,0.00021917,2]
[338252553,1726441844849,-1495.88,0.00021917,2]
[338252555,1726441844858,-589.91,0.00021917,2]
[338252557,1726441844869,-500.0,0.00021917,2]
[338252559,1726441844879,-711.35,0.00021917,2]
[338252561,1726441844890,-500.0,0.00021917,2]
[338252563,1726441844899,-500.0,0.00021917,2]
[338252565,1726441844909,-2401.81,0.00021917,2]
[338252567,1726441844935,-581.81,0.00021917,2]
[338252569,1726441844945,-885.09,0.00021917,2]
[338252571,1726441844956,-500.0,0.00021917,2]
[338252573,1726441844965,-68457.94,0.00021917,2]
[338252575,1726441844974,-500.0,0.00021917,2]
[338252577,1726441844984,-18457.67,0.00021917,2]
[338252578,1726441844994,-500.0,0.00021917,2]
[338252581,1726441845005,-880.68,0.00021917,2]
[338252582,1726441845014,-500.0,0.00021917,2]
[338252584,1726441845024,-500.0,0.00021917,2]
[338252586,1726441845033,-3057.73,0.00021917,2]
[338252588,1726441845043,-5562.91,0.00021917,2]
[338252590,1726441845052,-1041.24,0.00021917,2]
[338252592,1726441845062,-9034.42,0.00021917,2]
[338252594,1726441845071,-500.0,0.00021917,2]
[338252596,1726441845081,-511.89306416,0.00021917,2]
[338252598,1726441845091,-1864.24,0.00021917,2]
[338252600,1726441845100,-721.78,0.00021917,2]
[338252602,1726441845110,-513.47,0.00021917,2]
[338252604,1726441845121,-514.97,0.00021917,2]
[338252606,1726441845131,-1427.15,0.00021917,2]
[338252608,1726441845141,-777.15,0.00021917,2]
[338252610,1726441845152,-525.86,0.00021917,2]
[338252612,1726441845161,-3689.78,0.00021917,2]
[338252614,1726441845171,-5977.22,0.00021917,2]
[338252616,1726441845180,-500.0,0.00021917,2]
[338252618,1726441845190,-500.0,0.00021917,2]
[338252620,1726441845200,-1404.23,0.00021917,2]
[338252622,1726441845210,-788.81,0.00021917,2]
[338252624,1726441845219,-500.0,0.00021917,2]
[338252626,1726441845229,-500.0,0.00021917,2]
[338252628,1726441845238,-500.0,0.00021917,2]
[338252630,1726441845248,-500.0,0.00021917,2]
[338252632,1726441845258,-500.0,0.00021917,2]
[338252634,1726441845268,-1006.15,0.00021917,2]
[338252636,1726441845277,-500.0,0.00021917,2]
[338252638,1726441845287,-342.67,0.00021917,2]
[338252640,1726441845296,-12095.02,0.00021917,2]
[338252642,1726441845306,-500.0,0.00021917,2]
[338252644,1726441845315,-500.0,0.00021917,2]
[338252645,1726441845324,-522.85478774,0.00021917,2]
[338252647,1726441845334,-500.0,0.00021917,2]
[338252649,1726441845345,-501.57133353,0.00021917,2]
[338252651,1726441845355,-500.0,0.00021917,2]
[338252653,1726441845364,-551.88,0.00021917,2]
[338252655,1726441845374,-27810.76,0.00021917,2]
[338252657,1726441845383,-500.0,0.00021917,2]
[338252659,1726441845393,-500.0,0.00021917,2]
[338252661,1726441845402,-500.0,0.00021917,2]
[338252663,1726441845413,-500.0,0.00021917,2]
[338252665,1726441845423,-934.56,0.00021917,2]
[338252667,1726441845433,-500.0,0.00021917,2]
[338252669,1726441845442,-500.0,0.00021917,2]
[338252671,1726441845451,-1599.31,0.00021917,2]
[338252673,1726441845461,-500.0,0.00021917,2]
[338252675,1726441845471,-500.0,0.00021917,2]
[338252676,1726441845481,-1588.86,0.00021917,2]
[338252678,1726441845491,-500.0,0.00021917,2]
[338252680,1726441845501,-600.76,0.00021917,2]
[338252682,1726441845510,-18507.33,0.00021917,2]
[338252684,1726441845520,-1280.75,0.00021917,2]
[338252686,1726441845529,-500.0,0.00021917,2]
[338252688,1726441845539,-4177.23,0.00021917,2]
[338252690,1726441845549,-6007.87,0.00021917,2]
[338252692,1726441845559,-1132.78,0.00021917,2]
[338252694,1726441845568,-1668.68,0.00021917,2]
[338252696,1726441845579,-500.0,0.00021917,2]
[338252698,1726441845589,-500.0,0.00021917,2]
[338252700,1726441845599,-1746.97,0.00021917,2]
[338252702,1726441845608,-500.0,0.00021917,2]
[338252704,1726441845618,-3742.3,0.00021917,2]
[338252706,1726441845628,-1053.98,0.00021917,2]
[338252708,1726441845638,-2690.71,0.00021917,2]
[338252710,1726441845648,-500.0,0.00021917,2]
[338252712,1726441845658,-827.38,0.00021917,2]
[338252714,1726441845668,-500.0,0.00021917,2]
[338252716,1726441845678,-2327.2,0.00021917,2]
[338252718,1726441845688,-615.2,0.00021917,2]
[338252720,1726441845698,-500.0,0.00021917,2]
[338252722,1726441845707,-13312.01,0.00021917,2]
[338252724,1726441845717,-319.37824059,0.00021917,2]
[338252725,1726441845727,-514.75,0.00021917,2]
[338252728,1726441845738,-500.0,0.00021917,2]
[338252730,1726441845748,-500.0,0.00021917,2]
[338252731,1726441845758,-500.0,0.00021917,2]
[338252733,1726441845767,-1912.9,0.00021917,2]
[338252735,1726441845776,-500.0,0.00021917,2]
[338252737,1726441845787,-500.0,0.00021917,2]
[338252739,1726441845797,-1125.34,0.00021917,2]
[338252741,1726441845807,-1162.7,0.00021917,2]
[338252743,1726441845817,-500.0,0.00021917,2]
[338252745,1726441845827,-278.78266727,0.00021917,2]
[338252748,1726441845836,-2322.98,0.00021917,2]
[338252750,1726441845846,-505.67732505,0.00021917,2]
[338252752,1726441845855,-500.0,0.00021917,2]
[338252754,1726441845865,-500.0,0.00021917,2]
[338252756,1726441845875,-500.0,0.00021917,2]
[338252758,1726441845885,-500.0,0.00021917,2]
[338252760,1726441845895,-508.2680231,0.00021917,2]
[338252762,1726441845904,-570.59,0.00021917,2]
[338252764,1726441845914,-1316.8,0.00021917,2]
[338252766,1726441845924,-1871.04,0.00021917,2]
[338252768,1726441845933,-151.0,0.00021917,2]
[338252770,1726441845943,-500.0,0.00021917,2]
[338252772,1726441845955,-151.0,0.00021917,2]
[338252774,1726441845964,-151.0,0.00021917,2]
[338252775,1726441845974,-500.0,0.00021917,2]
[338252778,1726441845985,-500.0,0.00021917,2]
[338252779,1726441845994,-250.0,0.00021917,2]
[338252782,1726441846004,-967.14,0.00021917,2]
[338252784,1726441846014,-500.0,0.00021917,2]
[338252786,1726441846026,-500.0,0.00021917,2]
[338252787,1726441846036,-500.0,0.00021917,2]
[338252789,1726441846045,-500.0,0.00021917,2]
[338252791,1726441846055,-564.13,0.00021917,2]
[338252794,1726441846066,-2054.68,0.00021917,2]
[338252796,1726441846077,-3165.06,0.00021917,2]
[338252798,1726441846086,-500.0,0.00021917,2]
[338252800,1726441846098,-333.87845105,0.00021917,2]
[338252802,1726441846108,-500.0,0.00021917,2]
[338252804,1726441846118,-500.0,0.00021917,2]
[338252806,1726441846127,-557.59330449,0.00021917,2]
[338252808,1726441846137,-42651.07,0.00021917,2]
[338252810,1726441846146,-587.66,0.00021917,2]
[338252812,1726441846155,-1690.13,0.00021917,2]
[338252814,1726441846165,-500.0,0.00021917,2]
[338252816,1726441846174,-500.0,0.00021917,2]
[338252818,1726441846184,-1191.01,0.00021917,2]
[338252820,1726441846193,-500.0,0.00021917,2]
[338252822,1726441846203,-1020.18,0.00021917,2]
[338252824,1726441846213,-174.893866,0.00021917,2]
[338252826,1726441846222,-174.893866,0.00021917,2]
[338252828,1726441846232,-7004.08,0.00021917,2]
[338252830,1726441846241,-174.893866,0.00021917,2]
[338252832,1726441846250,-1643.69,0.00021917,2]
[338252834,1726441846259,-516.35,0.00021917,2]
[338252835,1726441846269,-174.893866,0.00021917,2]
[338252837,1726441846278,-174.893866,0.00021917,2]
[338252840,1726441846288,-174.893866,0.00021917,2]
[338252841,1726441846297,-500.0,0.00021917,2]
[338252843,1726441846307,-500.0,0.00021917,2]
[338252845,1726441846316,-500.0,0.00021917,2]
[338252847,1726441846325,-1775.03,0.00021917,2]
[338252849,1726441846336,-398.30315413,0.00021917,2]
[338252851,1726441846346,-500.0,0.00021917,2]
[338252853,1726441846355,-500.0,0.00021917,2]
[338252855,1726441846364,-500.0,0.00021917,2]
[338252857,1726441846374,-500.0,0.00021917,2]
[338252859,1726441846383,-500.0,0.00021917,2]
[338252861,1726441846392,-873.72,0.00021917,2]
[338252863,1726441846402,-3354.74,0.00021917,2]
[338252865,1726441846411,-500.0,0.00021917,2]
[338252867,1726441846421,-15037.12,0.00021917,2]
[338252869,1726441846430,-782.98,0.00021917,2]
[338252871,1726441846439,-3617.29,0.00021917,2]
[338252873,1726441846448,-500.0,0.00021917,2]
[338252875,1726441846458,-869.43,0.00021917,2]
[338252877,1726441846467,-500.0,0.00021917,2]
[338252879,1726441846477,-500.0,0.00021917,2]
[338252881,1726441846486,-859.99,0.00021917,2]
[338252883,1726441846495,-8747.4,0.00021917,2]
[338252884,1726441846504,-500.0,0.00021917,2]
[338252886,1726441846513,-500.0,0.00021917,2]
[338252888,1726441846522,-500.0,0.00021917,2]
[338252890,1726441846532,-1924.09,0.00021917,2]
[338252892,1726441846541,-500.0,0.00021917,2]
[338252894,1726441846551,-2464.76,0.00021917,2]
[338252896,1726441846561,-656.16,0.00021917,2]
[338252898,1726441846572,-2458.41,0.00021917,2]
[338252900,1726441846581,-738.28,0.00021917,2]
[338252902,1726441846590,-500.0,0.00021917,2]
[338252904,1726441846600,-500.0,0.00021917,2]
[338252906,1726441846609,-500.0,0.00021917,2]
[338252908,1726441846618,-500.0,0.00021917,2]
[338252910,1726441846629,-500.0,0.00021917,2]
[338252912,1726441846640,-515.4178867,0.00021917,2]
[338252914,1726441846651,-500.0,0.00021917,2]
[338252916,1726441846660,-695.18,0.00021917,2]
[338252918,1726441846670,-1577.95,0.00021917,2]
[338252920,1726441846679,-500.0,0.00021917,2]
[338252922,1726441846688,-3114.35,0.00021917,2]
[338252924,1726441846697,-2806.06,0.00021917,2]
[338252926,1726441846707,-500.0,0.00021917,2]
[338252928,1726441846716,-500.0,0.00021917,2]
[338252930,1726441846726,-500.0,0.00021917,2]
[338252932,1726441846736,-2442.79,0.00021917,2]
[338252934,1726441846746,-500.0,0.00021917,2]
[338252936,1726441846756,-2904.79,0.00021917,2]
[338252938,1726441846765,-582.39,0.00021917,2]
[338252940,1726441846775,-5726.69,0.00021917,2]
[338252942,1726441846786,-3187.1,0.00021917,2]
[338252944,1726441846795,-4855.21,0.00021917,2]
[338252946,1726441846805,-1068.48,0.00021917,2]
[338252948,1726441846815,-373.53529233,0.00021973,2]
[338252950,1726441846825,-153.0,0.00022,2]
[338252952,1726441846836,-153.0,0.00022,2]
[338252954,1726441846846,-168.0,0.00022,2]
[338252956,1726441846857,-41449.9167,0.00022,2]
[338252958,1726441846866,-420.0,0.00022083,2]
[338252960,1726441846877,-1184.16003512,0.00022121,2]
[338252962,1726441846886,-500.694997,0.00022173,2]
[338252964,1726441846895,-500.0,0.00022173,2]
[338252965,1726441846905,-500.0,0.00022173,2]
[338252966,1726441846915,-551.0408856,0.0002219,2]
[338252967,1726441846925,-500.0,0.00022191,2]
[338252968,1726441846935,-500.0,0.00022191,2]
[338252969,1726441846945,-500.0,0.00022191,2]
[338252970,1726441846955,-500.0,0.00022191,2]
[338252971,1726441846964,-500.0,0.00022191,2]
[338252972,1726441846974,-500.0,0.00022191,2]
[338252973,1726441846983,-500.0,0.00022191,2]
[338252974,1726441846992,-501.67795957,0.00022191,2]
[338252975,1726441847001,-500.0,0.00022191,2]
[338252976,1726441847010,-509.86546424,0.00022191,2]
[338252977,1726441847020,-765.22,0.00022191,2]
[338252978,1726441847029,-500.0,0.00022191,2]
[338252979,1726441847038,-500.0,0.00022191,2]
[338252980,1726441847048,-500.0,0.00022191,2]
[338252981,1726441847058,-562.19038792,0.00022191,2]
[338252982,1726441847068,-500.0,0.00022191,2]
[338252983,1726441847077,-500.0,0.00022191,2]
[338252984,1726441847086,-500.0,0.00022191,2]
[338252985,1726441847095,-500.0,0.00022191,2]
[338252986,1726441847104,-721.95,0.00022191,2]
[338252987,1726441847113,-500.0,0.00022191,2]
[338252988,1726441847122,-500.0,0.00022191,2]
[338252989,1726441847131,-360.1100984,0.00022191,2]
[338252991,1726441847141,-500.0,0.00022191,2]
[338252993,1726441847151,-500.0,0.00022191,2]
[338252995,1726441847161,-500.0,0.00022191,2]
[338252997,1726441847170,-500.0,0.00022191,2]
[338252999,1726441847180,-500.0,0.00022191,2]
[338253001,1726441847190,-500.0,0.00022191,2]
[338253003,1726441847199,-500.0,0.00022191,2]
[338253006,1726441847209,-500.0,0.00022191,2]
[338253007,1726441847219,-500.0,0.00022191,2]
[338253010,1726441847229,-500.0,0.00022191,2]
[338253012,1726441847239,-500.0,0.00022191,2]
[338253014,1726441847249,-1442.6,0.00022191,2]
[338253016,1726441847259,-500.0,0.00022191,2]
[338253018,1726441847269,-500.0,0.00022191,2]
[338253020,1726441847279,-500.0,0.00022191,2]
[338253022,1726441847288,-295.80393893,0.00022191,2]
[338253024,1726441847298,-500.0,0.00022191,2]
[338253025,1726441847307,-500.0,0.00022191,2]
[338253028,1726441847317,-736.26,0.00022191,2]
[338253029,1726441847327,-500.0,0.00022191,2]
[338253032,1726441847337,-1018.33,0.00022191,2]
[338253034,1726441847346,-500.0,0.00022191,2]
[338253036,1726441847356,-500.0,0.00022191,2]
[338253038,1726441847365,-500.0,0.00022191,2]
[338253040,1726441847374,-500.0,0.00022191,2]
[338253042,1726441847384,-707.85,0.00022191,2]
[338253044,1726441847393,-530.1,0.00022191,2]
[338253046,1726441847402,-500.0,0.00022191,2]
[338253047,1726441847412,-500.0,0.00022191,2]
[338253049,1726441847421,-500.0,0.00022191,2]
[338253051,1726441847431,-500.0,0.00022191,2]
[338253053,1726441847441,-500.0,0.00022191,2]
[338253055,1726441847450,-513.66,0.00022191,2]
[338253057,1726441847459,-500.0,0.00022191,2]
[338253059,1726441847469,-693.4,0.00022191,2]
[338253061,1726441847478,-500.0,0.00022191,2]
[338253063,1726441847487,-956.12,0.00022191,2]
[338253065,1726441847498,-764.89,0.00022191,2]
[338253068,1726441847509,-500.0,0.00022191,2]
[338253070,1726441847519,-500.0,0.00022191,2]
[338253071,1726441847528,-3054.63,0.00022191,2]
[338253073,1726441847538,-740.67,0.00022191,2]
[338253076,1726441847549,-500.0,0.00022191,2]
[338253078,1726441847559,-500.0,0.00022191,2]
[338253080,1726441847569,-533.12,0.00022191,2]
[338253082,1726441847579,-500.0,0.00022191,2]
[338253084,1726441847588,-506.51086386,0.00022191,2]
[338253086,1726441847598,-500.0,0.00022191,2]
[338253088,1726441847607,-500.0,0.00022191,2]
[338253090,1726441847617,-500.0,0.00022191,2]
[338253092,1726441847627,-500.0,0.00022191,2]
[338253094,1726441847636,-500.0,0.00022191,2]
[338253096,1726441847646,-500.0,0.00022191,2]
[338253098,1726441847657,-958.54,0.00022191,2]
[338253100,1726441847667,-1243.52,0.00022191,2]
[338253102,1726441847678,-500.0,0.00022191,2]